{"text_format":"1","workbook":"xlsx","n_sheets":22,"sheets":["Инструкция","Титульный","Список листов","ТС цены","ТС цены (2)","ТС показатели (2)","ТС характеристики","ТС инвестиции","ТС доступ","ТС показатели","Ссылки на публикации","Проверка","REESTR_START","REESTR_ORG","REESTR_TEMP","REESTR","TEHSHEET","tech","modHyp","modChange","modButtonClick","modSubsidiary"],"not_rendered":{"charts":0,"images":6,"macros":1,"external_links":1,"defined_names":129,"comments":0,"pivot_tables":0},"unopened":[],"bounds":{"document_bytes":16777216,"sheet_cells":100000,"rows_first":2000,"rows_last":500,"rows_between":2000,"halvings":0,"cell_chars":16384,"cell_head_chars":4096},"cells_cut":0,"cells_raw":0,"read":"whole","date_system":"1900"}

{"sheet":"Инструкция","index":0,"n_rows":54,"n_cols":16,"rows_kept":54,"cut":false,"hidden":false,"merged":[[49,4,49,10],[42,2,42,3],[42,4,42,10],[43,2,43,3],[43,4,43,10],[1,15,1,16],[2,2,2,15],[4,2,4,7],[41,2,41,7],[5,2,5,7],[53,2,53,3],[53,4,53,10],[44,2,44,3],[44,4,44,10],[45,2,45,3],[45,4,45,10],[46,2,46,3],[46,4,46,10],[48,2,48,7],[49,2,49,3],[50,2,50,3],[50,4,50,10],[51,2,51,3],[51,4,51,10],[52,2,52,3],[52,4,52,10]]}
[]
[null,null,null,null,null,null,null,null,null,null,null,null,null,null,null,{"$f":"\"Версия \" & GetVersion()","v":"Версия 3.0"}]
[null,null,"Инструкция по заполнению шаблона"]
[]
[null,null,"Субъект РФ"]
[null,null,"Ставропольский край"]
[]
[]
[]
[]
[]
[]
[]
[]
[]
[]
[]
[]
[]
[]
[]
[]
[]
[]
[]
[]
[]
[]
[]
[]
[]
[]
[]
[]
[]
[]
[]
[]
[]
[]
[]
[null,null,"Организационно-технические консультации: "]
[null,null,"ФИО"]
[null,null,"телефон"]
[null,null,"e-mail",null,"help@eias.ru"]
[null,null,"WEB-сайт"]
[null,null,"Комментарий",null,"Заполненные шаблоны необходимо направлять через систему ЕИАС."]
[]
[null,null,"Консультации по методологии заполнения форм:"]
[null,null,"ФИО"]
[null,null,"телефон"]
[null,null,"e-mail"]
[null,null,"WEB-сайт"]
[null,null,"Комментарий"]

{"sheet":"Титульный","index":1,"n_rows":35,"n_cols":8,"rows_kept":35,"cut":false,"hidden":false,"merged":[[31,4,34,4],[25,4,25,5],[27,4,28,4],[29,4,30,4],[26,4,26,5],[22,4,23,4],[19,5,19,6],[20,5,20,6],[2,6,2,7],[3,4,3,6],[5,4,5,5],[6,4,6,5],[12,5,12,6],[14,5,14,6]]}
[{"$f":"region_name","v":"Ставропольский край"},{"$f":"IF(god=\"\",\"Не определено\",god)","v":"2012"},{"$f":"org&\"_INN:\"&inn&\"_KPP:\"&kpp","v":"Открытое акционерное общество \"Ставропольсахар\"_INN:2607012219_KPP:260701001"}]
[{"$f":"IF(org=\"\",\"Не определено\",org)","v":"Открытое акционерное общество \"Ставропольсахар\""},{"$f":"IF(inn=\"\",\"Не определено\",inn)","v":"2607012219"}]
[{"$f":"IF(mo=\"\",\"Не определено\",mo)","v":"Город Изобильный"},{"$f":"IF(oktmo=\"\",\"Не определено\",oktmo)","v":"07620101"},null,null,null,null,{"$f":"version","v":"Версия 3.0"}]
[{"$f":"IF(fil=\"\",\"Не определено\",fil)","v":"Не определено"},{"$f":"IF(kpp=\"\",\"Не определено\",kpp)","v":"260701001"},null,null,"Показатели подлежащие раскрытию в сфере теплоснабжения и сфере оказания услуг по передаче тепловой энергии"]
[]
[null,null,null,null,"Субъект РФ"]
[null,null,null,null,"Ставропольский край"]
[]
[null,null,null,null,"Отчетный год:","2012","Отчетный квартал:","Год"]
[]
["L0","Признак филиала",null,null,"Является ли данное юридическое лицо подразделением(филиалом) другой организации","нет","Тип предоставляемых данных:","ПЛАН"]
[132]
[null,null,null,null,"Наименование ??? организации","Открытое акционерное общество \"Ставропольсахар\""]
[]
[null,null,null,null,"Наименование ПОДРАЗДЕЛЕНИЯ",null,null,"(заполняется, \nесли в ячейке \"F11\" - \"да\")"]
[]
[null,null,null,null,"ИНН ???","2607012219",null,"Наличие 2-ставочного тарифа"]
[null,null,null,null,"КПП ???","260701001",null,"Нет"]
[]
[null,null,null,null,"Вид деятельности","производство комбинированная выработка",null,"Вид тарифа на передачу тепловой энергии"]
[null,null,null,null,"НДС","Отчетность представлена без НДС",null,"руб./Гкал"]
[null,null,null,null,"Муниципальный район ???","Наименование МР","Изобильненский муниципальный район"]
[null,null,null,null,"Муниципальное образование ???","Наименование","Город Изобильный","(выберите из списка)"]
[null,null,null,null,null,"ОКТМО","07620101"]
[]
["L1.1","Юридический адрес",null,null,"Юридический адрес",null,"Ставропольский край город Изобильный улица Бонивура, 11"]
["L1.2","Почтовый адрес",null,null,"Почтовый адрес",null,"Ставропольский край город Изобильный улица Бонивура, 11"]
["L2.1","Руководитель.ФИО",null,null,"Руководитель","Фамилия, имя, отчество","Чуриков Андрей Александрович"]
["L2.2","Руководитель.Телефон",null,null,null,"Контактный телефон","8(86545)2-63-33"]
["L3.1","Гл.бухгалтер.ФИО",null,null,"Главный бухгалтер","Фамилия, имя, отчество","Буркина Светлана Ивановна"]
["L3.2","Гл.бухгалтер.Телефон",null,null,null,"Контактный телефон","8(86545)2-15-33"]
["L4.1","Ответственный.ФИО",null,null,"Должностное лицо, ответственное за составление формы","Фамилия, имя, отчество","Скляров Алексей Николаевич"]
["L4.2","Ответственный.Должность",null,null,null,"Должность","экономист"]
["L4.3","Ответственный.Телефон",null,null,null,"Контактный телефон","8(86545)2-60-44"]
["L4.4","Ответственный. E-Mail",null,null,null,"e-mail"]

{"sheet":"Список листов","index":2,"n_rows":9,"n_cols":4,"rows_kept":9,"cut":false,"hidden":false,"merged":[]}
[]
[null,"Лист","Заголовок листа","Ссылка"]
[null,"ТС цены",{"$f":"'ТС цены'!$E$10","v":"Информация о ценах (тарифах) на регулируемые товары и услуги и надбавках к этим ценам (тарифам)"},"Перейти на лист"]
[null,"ТС цены (2)",{"$f":"'ТС цены (2)'!E10","v":"Информация о ценах (тарифах) на регулируемые товары и услуги и надбавках к этим ценам (тарифам)"},"Перейти на лист"]
[null,"ТС характеристики",{"$f":"'ТС характеристики'!$E$10","v":"Информация об основных потребительских характеристиках регулируемых товаров и услуг регулируемых организаций и их соответствии государственным и иным утвержденным стандартам качества"},"Перейти на лист"]
[null,"ТС инвестиции",{"$f":"'ТС инвестиции'!$E$10","v":"Информация об инвестиционных программах и отчетах об их реализации"},"Перейти на лист"]
[null,"ТС доступ",{"$f":"'ТС доступ'!$E$10","v":"Информация о наличии (отсутствии) технической возможности доступа к регулируемым товарам и услугам регулируемых организаций, а также о регистрации и ходе реализации заявок на подключение к системе теплоснабжения"},"Перейти на лист"]
[null,"ТС показатели",{"$f":"'ТС показатели'!$E$10","v":"Информация об основных показателях финансово-хозяйственной деятельности регулируемых организаций, включая структуру основных производственных затрат (в части регулируемой деятельности)"},"Перейти на лист"]
[null,"Ссылки на публикации",{"$f":"'Ссылки на публикации'!E10","v":"Ссылки на публикации в других источниках"},"Перейти на лист"]

{"sheet":"ТС цены","index":3,"n_rows":32,"n_cols":24,"rows_kept":32,"cut":false,"hidden":false,"merged":[[15,5,16,5],[27,5,28,5],[29,5,30,5],[17,5,18,5],[19,5,20,5],[21,5,22,5],[23,5,24,5],[25,5,26,5],[12,13,13,13],[12,14,12,15],[11,7,11,9],[12,8,12,9],[11,5,13,6],[11,22,13,22],[11,23,13,23],[9,4,9,23],[14,5,14,6],[11,4,13,4],[11,19,13,19],[11,20,13,20],[11,21,13,21],[11,10,11,12],[11,13,11,15],[11,16,11,18],[12,7,13,7],[12,10,13,10],[12,16,13,16],[12,17,12,18],[12,11,12,12]]}
[]
[]
[]
[]
[]
[]
[]
[]
[null,null,null,null,null,"Список листов"]
[null,null,null,null,"Информация о ценах (тарифах) на регулируемые товары и услуги и надбавках к этим ценам (тарифам)"]
[]
[null,null,null,null,"№ п/п","Тариф на тепловую энергию / дифференциация по видам теплоносителя",null,"Организации-перепродавцы",null,null,"Бюджетные потребители",null,null,"Население",null,null,"Прочие",null,null,"Дата ввода","Срок действия (если установлен)","Постановление (от XX.XX.XXXX №)","Наименование регулирующего органа, принявшего решение об утверждении цен","Источник официального опубликования"]
[null,null,null,null,null,null,null,"Одноставочный тариф, руб./Гкал","Двухставочный тариф",null,"Одноставочный тариф, руб./Гкал","Двухставочный тариф",null,"Одноставочный тариф, руб./Гкал","Двухставочный тариф",null,"Одноставочный тариф, руб./Гкал","Двухставочный тариф"]
[null,null,null,null,null,null,null,null,"ставка за энергию руб./Гкал","ставка за мощность тыс.руб.в месяц/Гкал/ч",null,"ставка за энергию руб./Гкал","ставка за мощность тыс.руб.в месяц/Гкал/ч",null,"ставка за энергию руб./Гкал","ставка за мощность тыс.руб.в месяц/Гкал/ч",null,"ставка за энергию руб./Гкал","ставка за мощность тыс.руб.в месяц/Гкал/ч"]
[null,null,null,null,1,2,null,3,4,5,6,7,8,9,10,11,12,13,14,15,16,17,18,19]
[null,null,null,null,"1.1.1","Тариф без дифференциации по видам теплоносителя","через тепловую сеть"]
[null,null,null,null,"1.1.2",null,"отпуск с коллекторов"]
[null,null,null,null,"2.1.1","Горячая вода, в том числе","через тепловую сеть"]
[null,null,null,null,"2.1.2",null,"отпуск с коллекторов",null,null,null,553.66,null,null,653.32000000000005,null,null,null,null,null,"2012-01-01","2012-12-31","24.11.2011 №69","РТК Ставропольского края","СМИ"]
[null,null,null,null,"3.1.1","Отборный пар всего, в том числе","через тепловую сеть"]
[null,null,null,null,"3.1.2",null,"отпуск с коллекторов"]
[null,null,null,null,"3.2.1","1,2-2,5 кг/см2","через тепловую сеть"]
[null,null,null,null,"3.2.2",null,"отпуск с коллекторов"]
[null,null,null,null,"3.3.1","2,5-7 кг/см2","через тепловую сеть"]
[null,null,null,null,"3.3.2",null,"отпуск с коллекторов",null,null,null,580.13,null,null,null,null,null,null,null,null,"2012-01-01","2012-12-31","24.11.2011 №69","РТК Ставропольского края","СМИ"]
[null,null,null,null,"3.4.1","7-13 кг/см2","через тепловую сеть"]
[null,null,null,null,"3.4.2",null,"отпуск с коллекторов"]
[null,null,null,null,"3.5.1","> 13 кг/см2","через тепловую сеть"]
[null,null,null,null,"3.5.2",null,"отпуск с коллекторов"]
[null,null,null,null,"4.1.1","Острый редуцированный пар, в том числе","через тепловую сеть"]
[null,null,null,"first","4.1.2",null,"отпуск с коллекторов"]
[null,null,null,"end",null,"Добавить вид теплоносителя"]

{"sheet":"ТС цены (2)","index":4,"n_rows":22,"n_cols":11,"rows_kept":22,"cut":false,"hidden":false,"merged":[[9,4,9,7]]}
[]
[null,null,null,"Удалить"]
[]
[]
[]
[]
[]
[]
[null,null,null,null,null,"Список листов"]
[null,null,null,null,"Информация о ценах (тарифах) на регулируемые товары и услуги и надбавках к этим ценам (тарифам)"]
[]
[null,null,null,null,"№ п/п","Наименование показателя","Единица измерения","Значение"]
[null,null,null,null,1,2,3,4]
[null,null,null,null,"1","Утвержденная надбавка к ценам (тарифам) на тепловую энергию для потребителей","руб./Гкал",0,null,null,{"$f":"SUM(K15:K17)","v":3}]
[null,null,null,null,"1.1","Утвержденная надбавка к ценам (тарифам) на тепловую энергию для населения","руб./Гкал",0,null,null,{"$f":"IF(H15=\"\",0,1)","v":1}]
[null,null,null,null,"1.2","Утвержденная надбавка к ценам (тарифам) на тепловую энергию для бюджетных потребителей","руб./Гкал",0,null,null,{"$f":"IF(H16=\"\",0,1)","v":1}]
[null,null,null,null,"1.3","Утвержденная надбавка к ценам (тарифам) на тепловую энергию для прочих потребителей","руб./Гкал",0,null,null,{"$f":"IF(H17=\"\",0,1)","v":1}]
[null,null,null,null,"2","Утвержденная надбавка к тарифам регулируемых организаций на тепловую энергию","руб./Гкал",0]
[null,null,null,null,"3","Утвержденная надбавка к тарифам регулируемых организаций на передачу тепловой энергии","руб./Гкал",0]
[null,null,null,null,"4","Утвержденный тариф на подключение создаваемых (реконструируемых) объектов недвижимости к системе теплоснабжения","руб./Гкал ч",0]
[null,null,null,null,"5","Утвержденный тариф регулируемых организаций на подключение к системе теплоснабжения","руб./Гкал ч",0]
[null,null,null,null,"6","Утвержденный тариф на передачу тепловой энергии (мощности)","руб./Гкал",0]

{"sheet":"ТС показатели (2)","index":5,"n_rows":65,"n_cols":10,"rows_kept":65,"cut":false,"hidden":false,"merged":[[61,5,61,6],[62,5,62,6],[63,5,63,6],[64,5,64,6],[55,5,55,6],[56,5,56,6],[57,5,57,6],[58,5,58,6],[59,5,59,6],[60,5,60,6],[54,5,54,6],[43,5,43,6],[44,5,44,6],[45,5,45,6],[46,5,46,6],[47,5,47,6],[48,5,48,6],[49,5,49,6],[50,5,50,6],[51,5,51,6],[52,5,52,6],[53,5,53,6],[42,5,42,6],[31,5,31,6],[32,5,32,6],[33,5,33,6],[34,5,34,6],[35,5,35,6],[36,5,36,6],[37,5,37,6],[38,5,38,6],[39,5,39,6],[40,5,40,6],[41,5,41,6],[30,5,30,6],[16,5,16,6],[17,5,17,6],[18,4,21,4],[18,5,21,5],[23,5,23,6],[24,5,24,6],[25,5,25,6],[26,5,26,6],[27,5,27,6],[28,5,28,6],[29,5,29,6],[15,5,15,6],[9,4,9,8],[11,5,11,6],[12,5,12,6],[13,5,13,6],[14,5,14,6]]}
[]
[]
[]
[]
[]
[]
[]
[]
[null,null,null,null,null,"Список листов"]
[null,null,null,null,"Информация об основных показателях финансово-хозяйственной деятельности регулируемых организаций, включая структуру основных производственных затрат (в части регулируемой деятельности)"]
[]
[null,null,null,null,"№ п/п","Наименование показателя",null,"Единица измерения","Значение"]
[null,null,null,null,1,{"$f":"E13+1","v":2},null,{"$f":"F13+1","v":3},{"$f":"H13+1","v":4}]
[null,null,null,null,1,"Вид регулируемой деятельности (производство, передача и сбыт тепловой энергии)",null,"x","производство комбинированная выработка"]
[null,null,null,null,2,"Выручка от регулируемой деятельности",null,"тыс.руб.",124161.31]
[null,null,null,null,3,"Себестоимость производимых товаров (оказываемых услуг) по регулируемому виду деятельности, в том числе:",null,"тыс.руб.",{"$f":"SUM(I17,I18,I24,I27,I28,I29,I30,I31,I32,I33,I36,I39,I40)","v":125627.90000000002}]
[null,null,null,null,"3.1","Расходы на покупаемую тепловую энергию (мощность)",null,"тыс.руб.",0]
[null,null,null,null,"3.2","Расходы на топливо",null,"тыс.руб.",{"$f":"SUMIF(G19:G23,G19,I19:I23)","v":105609.11}]
[null,null,null,null,"3.2.1","газ природный","Стоимость","тыс.руб.",105609.11]
[null,null,null,null,null,null,"Объем",{"$f":"IF(J20,\"\",J21)","v":"тыс. м3"},26256.2,{"$f":"ISNA(J21)","v":false}]
[null,null,null,null,null,null,"Стоимость 1й единицы объема с учетом доставки (транспортировки)","тыс.руб.",{"$f":"IF(I20=\"\",0,IF(I20=0,0,I19/I20))","v":4.0222541723478642},{"$f":"INDEX(tech!G$24:G$51,MATCH(F19,tech!F$24:F$51,0))","v":"тыс. м3"}]
[null,null,null,null,null,null,"Способ приобретения","x","договорной"]
[null,null,null,null,null,"Добавить вид топлива"]
[null,null,null,null,"3.3","Расходы на покупаемую электрическую энергию (мощность), потребляемую оборудованием, используемым в технологическом процессе:",null,"тыс.руб.",2337.41]
[null,null,null,null,"3.3.1","Средневзвешенная стоимость 1 кВт*ч",null,"руб.",{"$f":"IF(I26=0,0,I24/I26)","v":3.3391571428571427}]
[null,null,null,null,"3.3.2","Объем приобретенной электрической энергии",null,"тыс. кВт*ч",700]
[null,null,null,null,"3.4","Расходы на приобретение холодной воды, используемой в технологическом процессе",null,"тыс.руб.",2510.54]
[null,null,null,null,"3.5","Расходы на химреагенты, используемые в технологическом процессе",null,"тыс.руб.",399.8]
[null,null,null,null,"3.6.1","   Расходы на оплату труда основного производственного персонала",null,"тыс.руб.",6617.88]
[null,null,null,null,"3.6.2","   Отчисления на социальные нужды основного производственного персонала",null,"тыс.руб.",2279.8000000000002]
[null,null,null,null,"3.7.1","Расходы на амортизацию основных производственных средств, используемых в технологическом процессе",null,"тыс.руб.",172.47]
[null,null,null,null,"3.7.2","Аренда имущества, используемого в технологическом процессе",null,"тыс.руб.",1169.74]
[null,null,null,null,"3.8","Общепроизводственные (цеховые) расходы, в том числе:",null,"тыс.руб.",80.98]
[null,null,null,null,"3.8.1","Расходы на оплату труда",null,"тыс.руб.",0]
[null,null,null,null,"3.8.2","Отчисления на социальные нужды",null,"тыс.руб.",0]
[null,null,null,null,"3.9","Общехозяйственные (управленческие) расходы",null,"тыс.руб.",619.85]
[null,null,null,null,"3.9.1","Расходы на оплату труда",null,"тыс.руб.",0]
[null,null,null,null,"3.9.2","Отчисления на социальные нужды",null,"тыс.руб.",0]
[null,null,null,null,"3.10","Расходы на ремонт (капитальный и текущий) основных производственных средств",null,"тыс.руб.",1362.11]
[null,null,null,null,"3.11","Расходы на услуги производственного характера, выполняемые по договорам с организациями на проведение регламентных работ в рамках технологического процесса",null,"тыс.руб.",2468.21]
[null,null,null,null,"4","Валовая прибыль от продажи товаров и услуг по регулируемому виду деятельности",null,"тыс.руб.",693.01]
[null,null,null,null,"5","Чистая прибыль от регулируемого вида деятельности",null,"тыс.руб.",551.49]
[null,null,null,null,"5.1","В том числе чистая прибыль на финансирование мероприятий, предусмотренных инвестиционной программой по развитию системы теплоснабжения",null,"тыс.руб.",0]
[null,null,null,null,"6","Изменение стоимости основных фондов",null,"тыс.руб.",0]
[null,null,null,null,"6.1","В том числе за счет ввода (вывода) их из эксплуатации ",null,"тыс.руб.",0]
[null,null,null,null,"7","Установленная тепловая мощность",null,"Гкал/ч",129]
[null,null,null,null,"8","Присоединенная нагрузка",null,"Гкал/ч",0]
[null,null,null,null,"9","Объем вырабатываемой регулируемой организацией тепловой энергии",null,"тыс. Гкал",226.39400000000001]
[null,null,null,null,"9.1","Справочно: объем тепловой энергии на технологические нужды производства",null,"тыс. Гкал",6.2530000000000001]
[null,null,null,null,"10","Объем покупаемой регулируемой организацией тепловой энергии",null,"тыс. Гкал",0]
[null,null,null,null,"11","Объем тепловой энергии, отпускаемой потребителям, в том числе:",null,"тыс. Гкал",{"$f":"I52+I53","v":3.7280000000000002}]
[null,null,null,null,"11.1","По приборам учета",null,"тыс. Гкал",0]
[null,null,null,null,"11.2","По нормативам потребления",null,"тыс. Гкал",3.7280000000000002]
[null,null,null,null,"12","Технологические потери тепловой энергии при передаче по тепловым сетям",null,"%",0]
[null,null,null,null,"13","Справочно: потери тепла через изоляцию труб",null,"тыс.Гкал",0]
[null,null,null,null,"14","Протяженность магистральных сетей и тепловых вводов (в однотрубном исчислении)",null,"км",2.7]
[null,null,null,null,"15","Протяженность разводящих сетей (в однотрубном исчислении)",null,"км",0.9]
[null,null,null,null,"16","Количество теплоэлектростанций",null,"ед.",1]
[null,null,null,null,"17","Количество тепловых станций и котельных",null,"ед.",1]
[null,null,null,null,"18","Количество тепловых пунктов",null,"ед.",1]
[null,null,null,null,"19","Среднесписочная численность основного производственного персонала",null,"чел.",41]
[null,null,null,null,"20","Удельный расход условного топлива на единицу тепловой энергии, отпускаемой в тепловую сеть",null,"кг у.т./Гкал",133.37]
[null,null,null,null,"21","Удельный расход электрической энергии на единицу тепловой энергии, отпускаемой в тепловую сеть",null,"кВт*ч/Гкал",3.0910000000000002]
[null,null,null,null,"22","Удельный расход холодной воды на единицу тепловой энергии, отпускаемой в тепловую сеть",null,"куб. м/Гкал",0.4]
[null,null,null,null,"23","Комментарии"]

{"sheet":"ТС характеристики","index":6,"n_rows":17,"n_cols":7,"rows_kept":17,"cut":false,"hidden":false,"merged":[[9,4,9,6]]}
[]
[]
[]
[]
[]
[]
[]
[]
[null,null,null,null,null,"Список листов"]
[null,null,null,null,"Информация об основных потребительских характеристиках регулируемых товаров и услуг регулируемых организаций и их соответствии государственным и иным утвержденным стандартам качества"]
[]
[null,null,null,null,"№ п/п","Наименование показателя","Значение"]
[null,null,null,null,1,{"$f":"E13+1","v":2},{"$f":"F13+1","v":3}]
[null,null,null,null,1,"Количество аварий на системах теплоснабжения (единиц на км)",0]
[null,null,null,null,2,"Количество часов (суммарно за календарный год), превышающих допустимую продолжительность перерыва подачи тепловой энергии в отопительный период",0]
[null,null,null,null,3,"Количество потребителей, затронутых ограничениями подачи тепловой энергии ",0]
[null,null,null,null,4,"Количество часов (суммарно за календарный год) отклонения от нормативной температуры воздуха по вине регулируемой организации в жилых и нежилых отапливаемых помещениях",0]

{"sheet":"ТС инвестиции","index":7,"n_rows":53,"n_cols":12,"rows_kept":53,"cut":false,"hidden":false,"merged":[[9,4,9,6]]}
[]
[]
[]
[]
[]
[]
[]
[]
[null,null,null,null,null,"Список листов"]
[null,null,null,null,"Информация об инвестиционных программах и отчетах об их реализации"]
[]
[null,null,null,null,"№ п/п","Наименование показателя","Значение","Плановые значения"]
[null,null,null,null,1,{"$f":"E13+1","v":2},{"$f":"F13+1","v":3},{"$f":"G13+1","v":4}]
[null,null,null,null,1,"Наименование инвестиционной программы","0","х",null,"Введите название мероприятия",null,"Добавить мероприятие"]
[null,null,null,null,2,"Цель инвестиционной программы","0","х",null,"х"]
[null,null,null,null,3,"Срок начала",null,"х",null,"х"]
[null,null,null,null,4,"Срок окончания",null,"х",null,"х"]
[null,null,null,null,5,"Потребность в финансовых средствах, необходимых для реализации инвестиционной программы",0,"х",null,"х"]
[null,null,null,null,"6","Инвестиционная программа продолжается в следующих периодах","нет","х",null,"х"]
[null,null,null,null,"7","Эффективность реализации инвестиционной программы:",{"$f":"SUM(J20:K20)","v":0},0,null,{"$f":"SUM(J21:J30)","v":0}]
[null,null,null,null,"7.1","Повышение уровня автоматизации (%)",0,0]
[null,null,null,null,"7.2","Повышение качества предоставляемых товаров/услуг (%)",0,0]
[null,null,null,null,"7.3","Снижение аварийности (%)",0,0]
[null,null,null,null,"7.4","Снижения % утечек",0,0]
[null,null,null,null,"7.5","Повышение эффективности работы (%)",0,0]
[null,null,null,null,"7.6","Повышение эффективности производства (%)",0,0]
[null,null,null,null,"7.7","Повышение качества учета товара/услуги (%)",0,0]
[null,null,null,null,"7.8","Прочие, при условии минимизация расходов (%)",0,0]
[null,null,null,null,"7.9",null,0,0]
[null,null,null,null,null,"Добавить показатель эффективности"]
[null,null,null,null,"8","Запланировано средств за I квартал (тыс.руб.):",{"$f":"SUM(J31:K31)","v":0},0]
[null,null,null,null,"9","Запланировано средств за II квартал (тыс.руб.):",0,0]
[null,null,null,null,"10","Запланировано средств за III квартал (тыс.руб.):",0,0]
[null,null,null,null,"11","Запланировано средств за IV квартал (тыс.руб.):",0,0]
[null,null,null,null,"12","Использовано средств за I квартал (тыс.руб.):",0,0]
[null,null,null,null,"13","Использовано средств за II квартал (тыс.руб.):",0,0]
[null,null,null,null,"14","Использовано средств за III квартал (тыс.руб.):",0,0]
[null,null,null,null,"15","Использовано средств за IV квартал (тыс.руб.):",0,0]
[null,null,null,null,"16","Привлеченные средства(тыс. руб.), из них:",{"$f":"G40+G42+G43+G47+G48","v":0},0,null,{"$f":"J40+J42+J43+J47+J48","v":0}]
[null,null,null,null,"16.1","Кредиты банков (тыс. руб.)",{"$f":"SUM(J40:K40)","v":0},0]
[null,null,null,null,"16.2","Из них: кредиты иностранных банков (тыс. руб.)",{"$f":"SUM(J41:K41)","v":0},0]
[null,null,null,null,"16.3","Заемные средства других организаций (тыс. руб.)",{"$f":"SUM(J42:K42)","v":0},0]
[null,null,null,null,"17","Бюджетные средства (тыс. руб.) из них:",{"$f":"SUM(G44:G46)","v":0},0,null,{"$f":"SUM(J44:J46)","v":0}]
[null,null,null,null,"17.1","Федеральный бюджет (тыс. руб.)",{"$f":"SUM(J44:K44)","v":0},0]
[null,null,null,null,"17.2","Бюджет субъекта РФ (тыс. руб.)",0,0]
[null,null,null,null,"17.3","Бюджет муниципального образования (тыс. руб.)",0,0]
[null,null,null,null,"18","Средства внебюджетных фондов (тыс. руб.)",0,0]
[null,null,null,null,"19","Прочие средства (тыс. руб.)",0,0]
[null,null,null,null,"20","Амортизация (тыс.руб.)",0,0]
[null,null,null,null,"21","Инвестиционная надбавка к тарифу (тыс.руб.)",0,0]
[null,null,null,null,"22","Плата за подключение (тыс.руб.)",0,0]
[null,null,null,null,"23","Прибыль (тыс.руб.)",0,0]
[null,null,null,null,null,null,null,null,null,"Удалить мероприятие"]

{"sheet":"ТС доступ","index":8,"n_rows":21,"n_cols":7,"rows_kept":21,"cut":false,"hidden":false,"merged":[[9,4,9,6]]}
[]
[]
[]
[]
[]
[]
[]
[]
[null,null,null,null,null,"Список листов"]
[null,null,null,null,"Информация о наличии (отсутствии) технической возможности доступа к регулируемым товарам и услугам регулируемых организаций, а также о регистрации и ходе реализации заявок на подключение к системе теплоснабжения"]
[]
[null,null,null,null,"№ п/п","Наименование показателя","Значение"]
[null,null,null,null,1,{"$f":"E13+1","v":2},{"$f":"F13+1","v":3}]
[null,null,null,null,1,"Количество поданных заявок на подключение к системе теплоснабжения",0]
[null,null,null,null,"1.1","Количество зарегистрированных заявок на подключение к системе теплоснабжения (если отличается от количества поданных) ",0]
[null,null,null,null,2,"Количество исполненных заявок на подключение к системе теплоснабжения",0]
[null,null,null,null,3,"Количество заявок на подключение к системе теплоснабжения, по которым принято решение об отказе в подключении",0]
[null,null,null,null,4,"Резерв мощности системы теплоснабжения Всего (Гкал/час)",{"$f":"SUM(G19:G20)","v":0}]
[null,null,null,"first"]
[null,null,null,"end",null,"Добавить систему теплоснабжения"]
[null,null,null,null,5,"Справочно: количество выданных техусловий на подключение",0]

{"sheet":"ТС показатели","index":9,"n_rows":65,"n_cols":10,"rows_kept":65,"cut":false,"hidden":false,"merged":[[26,5,26,6],[9,4,9,8],[18,4,21,4],[18,5,21,5],[13,5,13,6],[14,5,14,6],[15,5,15,6],[16,5,16,6],[17,5,17,6],[12,5,12,6],[11,5,11,6],[23,5,23,6],[24,5,24,6],[25,5,25,6],[35,5,35,6],[27,5,27,6],[30,5,30,6],[31,5,31,6],[32,5,32,6],[28,5,28,6],[29,5,29,6],[33,5,33,6],[34,5,34,6],[39,5,39,6],[36,5,36,6],[37,5,37,6],[38,5,38,6],[41,5,41,6],[40,5,40,6],[64,5,64,6],[58,5,58,6],[59,5,59,6],[60,5,60,6],[61,5,61,6],[63,5,63,6],[62,5,62,6],[51,5,51,6],[48,5,48,6],[42,5,42,6],[57,5,57,6],[54,5,54,6],[47,5,47,6],[49,5,49,6],[50,5,50,6],[53,5,53,6],[55,5,55,6],[56,5,56,6],[52,5,52,6],[46,5,46,6],[43,5,43,6],[45,5,45,6],[44,5,44,6]]}
[]
[]
[]
[]
[]
[]
[]
[]
[null,null,null,null,null,"Список листов"]
[null,null,null,null,"Информация об основных показателях финансово-хозяйственной деятельности регулируемых организаций, включая структуру основных производственных затрат (в части регулируемой деятельности)"]
[]
[null,null,null,null,"№ п/п","Наименование показателя",null,"Единица измерения","Значение"]
[null,null,null,null,1,{"$f":"E13+1","v":2},null,{"$f":"F13+1","v":3},{"$f":"H13+1","v":4}]
[null,null,null,null,1,"Вид регулируемой деятельности (производство, передача и сбыт тепловой энергии)",null,"x"]
[null,null,null,null,2,"Выручка от регулируемой деятельности",null,"тыс.руб."]
[null,null,null,null,3,"Себестоимость производимых товаров (оказываемых услуг) по регулируемому виду деятельности, в том числе:",null,"тыс.руб.",{"$f":"SUM(I17,I18,I24,I27,I28,I29,I30,I31,I32,I33,I36,I39,I40)","v":0}]
[null,null,null,null,"3.1","Расходы на покупаемую тепловую энергию (мощность)",null,"тыс.руб."]
[null,null,null,null,"3.2","Расходы на топливо",null,"тыс.руб.",{"$f":"SUMIF(G19:G23,G19,I19:I23)","v":0}]
[null,null,null,null,"3.2.1",null,"Стоимость","тыс.руб."]
[null,null,null,null,null,null,"Объем",{"$f":"IF(J20,\"\",J21)","v":""},null,{"$f":"ISNA(J21)","v":true}]
[null,null,null,null,null,null,"Стоимость 1й единицы объема с учетом доставки (транспортировки)","тыс.руб.",{"$f":"IF(I20=\"\",0,IF(I20=0,0,I19/I20))","v":0},{"$f":"INDEX(tech!G$24:G$51,MATCH(F19,tech!F$24:F$51,0))","v":{"$error":"#N/A"}}]
[null,null,null,null,null,null,"Способ приобретения","x"]
[null,null,null,null,null,"Добавить вид топлива"]
[null,null,null,null,"3.3","Расходы на покупаемую электрическую энергию (мощность), потребляемую оборудованием, используемым в технологическом процессе:",null,"тыс.руб."]
[null,null,null,null,"3.3.1","Средневзвешенная стоимость 1 кВт*ч",null,"руб.",{"$f":"IF(I26=0,0,I24/I26)","v":0}]
[null,null,null,null,"3.3.2","Объем приобретенной электрической энергии",null,"тыс. кВт*ч"]
[null,null,null,null,"3.4","Расходы на приобретение холодной воды, используемой в технологическом процессе",null,"тыс.руб."]
[null,null,null,null,"3.5","Расходы на химреагенты, используемые в технологическом процессе",null,"тыс.руб."]
[null,null,null,null,"3.6.1","   Расходы на оплату труда основного производственного персонала",null,"тыс.руб."]
[null,null,null,null,"3.6.2","   Отчисления на социальные нужды основного производственного персонала",null,"тыс.руб."]
[null,null,null,null,"3.7.1","Расходы на амортизацию основных производственных средств, используемых в технологическом процессе",null,"тыс.руб."]
[null,null,null,null,"3.7.2","Аренда имущества, используемого в технологическом процессе",null,"тыс.руб."]
[null,null,null,null,"3.8","Общепроизводственные (цеховые) расходы, в том числе:",null,"тыс.руб."]
[null,null,null,null,"3.8.1","Расходы на оплату труда",null,"тыс.руб."]
[null,null,null,null,"3.8.2","Отчисления на социальные нужды",null,"тыс.руб."]
[null,null,null,null,"3.9","Общехозяйственные (управленческие) расходы",null,"тыс.руб."]
[null,null,null,null,"3.9.1","Расходы на оплату труда",null,"тыс.руб."]
[null,null,null,null,"3.9.2","Отчисления на социальные нужды",null,"тыс.руб."]
[null,null,null,null,"3.10","Расходы на ремонт (капитальный и текущий) основных производственных средств",null,"тыс.руб."]
[null,null,null,null,"3.11","Расходы на услуги производственного характера, выполняемые по договорам с организациями на проведение регламентных работ в рамках технологического процесса",null,"тыс.руб."]
[null,null,null,null,"4","Валовая прибыль от продажи товаров и услуг по регулируемому виду деятельности",null,"тыс.руб."]
[null,null,null,null,"5","Чистая прибыль от регулируемого вида деятельности",null,"тыс.руб."]
[null,null,null,null,"5.1","В том числе чистая прибыль на финансирование мероприятий, предусмотренных инвестиционной программой по развитию системы теплоснабжения",null,"тыс.руб."]
[null,null,null,null,"6","Изменение стоимости основных фондов",null,"тыс.руб."]
[null,null,null,null,"6.1","В том числе за счет ввода (вывода) их из эксплуатации ",null,"тыс.руб."]
[null,null,null,null,"7","Установленная тепловая мощность",null,"Гкал/ч"]
[null,null,null,null,"8","Присоединенная нагрузка",null,"Гкал/ч"]
[null,null,null,null,"9","Объем вырабатываемой регулируемой организацией тепловой энергии",null,"тыс. Гкал"]
[null,null,null,null,"9.1","Справочно: объем тепловой энергии на технологические нужды производства",null,"тыс. Гкал"]
[null,null,null,null,"10","Объем покупаемой регулируемой организацией тепловой энергии",null,"тыс. Гкал"]
[null,null,null,null,"11","Объем тепловой энергии, отпускаемой потребителям, в том числе:",null,"тыс. Гкал",{"$f":"I52+I53","v":0}]
[null,null,null,null,"11.1","По приборам учета",null,"тыс. Гкал"]
[null,null,null,null,"11.2","По нормативам потребления",null,"тыс. Гкал"]
[null,null,null,null,"12","Технологические потери тепловой энергии при передаче по тепловым сетям",null,"%"]
[null,null,null,null,"13","Справочно: потери тепла через изоляцию труб",null,"тыс.Гкал"]
[null,null,null,null,"14","Протяженность магистральных сетей и тепловых вводов (в однотрубном исчислении)",null,"км"]
[null,null,null,null,"15","Протяженность разводящих сетей (в однотрубном исчислении)",null,"км"]
[null,null,null,null,"16","Количество теплоэлектростанций",null,"ед."]
[null,null,null,null,"17","Количество тепловых станций и котельных",null,"ед."]
[null,null,null,null,"18","Количество тепловых пунктов",null,"ед."]
[null,null,null,null,"19","Среднесписочная численность основного производственного персонала",null,"чел."]
[null,null,null,null,"20","Удельный расход условного топлива на единицу тепловой энергии, отпускаемой в тепловую сеть",null,"кг у.т./Гкал"]
[null,null,null,null,"21","Удельный расход электрической энергии на единицу тепловой энергии, отпускаемой в тепловую сеть",null,"кВт*ч/Гкал"]
[null,null,null,null,"22","Удельный расход холодной воды на единицу тепловой энергии, отпускаемой в тепловую сеть",null,"куб. м/Гкал"]
[null,null,null,null,"23","Комментарии"]

{"sheet":"Ссылки на публикации","index":10,"n_rows":28,"n_cols":7,"rows_kept":28,"cut":false,"hidden":false,"merged":[[26,4,26,6],[9,4,9,6],[11,4,11,6],[27,4,27,6]]}
[]
[]
[]
[]
[]
[]
[]
[]
[null,null,null,null,null,"Список листов"]
[null,null,null,null,"Ссылки на публикации в других источниках"]
[]
[null,null,null,null,"Условия публичных договоров поставок тепловой энергии, оказания услуг в сфере теплоснабжения, в том числе договоров на подключение к системе теплоснабжения и информация о порядке выполнения мероприятий, связанных с подключением"]
[null,null,null,null,"№ п/п","Содержание пункта","Ссылка на материалы"]
[null,null,null,null,1,{"$f":"E14+1","v":2},3]
[null,null,null,null,1,"Форма заявки на подключение к системе."]
[null,null,null,null,2,"Перечень и формы документов, представляемых одновременно с заявкой на подключение к системе."]
[null,null,null,null,3,"Описание (со ссылкой на нормативные акты) порядка действий  заявителя  и регулируемой организации при  подаче, приеме, обработке заявки на подключение к системе, принятии решения и уведомлении о принятом решении."]
[null,null,null,null,4,"Контакты службы, ответственной за прием и обработку заявок на подключение к системе."]
[null,null,null,null,"4.1","Адрес","город Изобильный улица Бонивура, 11"]
[null,null,null,null,"4.2","Телефон","8(86545)2-26-25"]
[null,null,null,null,"4.3","E-mail"]
[null,null,null,null,"4.4","Сайт"]
[null,null,null,"first",5,"Условия публичных договоров  поставок регулируемых товаров, оказания регулируемых услуг, в том числе договоров на подключение к системе *"]
[null,null,null,null,6,"Сведения об источнике публикации годовой бухгалтерской отчетности, включая бухгалтерский баланс и приложения к нему **"]
[null,null,null,"end",null,"Добавить запись"]
[]
[null,null,null,null,"* раскрывается на позднее 30 дней со дня соответствующего решения об установлении тарифа(надбавки) на очередной период регулирования "]
[null,null,null,null,"** заполняется в том случае, если выручка предприятия от регулируемой деятельности 80% и более от совокупной за отчетный год "]

{"sheet":"Проверка","index":11,"n_rows":1,"n_cols":3,"rows_kept":1,"cut":false,"hidden":false,"merged":[]}
["Ссылка","Причина","Статус ошибки"]

{"sheet":"REESTR_START","index":12,"n_rows":0,"n_cols":0,"rows_kept":0,"cut":false,"hidden":true,"merged":[]}

{"sheet":"REESTR_ORG","index":13,"n_rows":71,"n_cols":8,"rows_kept":71,"cut":false,"hidden":true,"merged":[]}
[null,"МР","МО","МО ОКТМО","ОРГАНИЗАЦИЯ","ИНН","КПП","ВИД ДЕЯТЕЛЬНОСТИ"]
[1,"Александровский муниципальный район","Александровский сельсовет","07602402","МУП Александровского муниципального района Ставропольского края \"ЖКХ\"","2601004596","260101001","производство (некомбинированная выработка)+передача+сбыт"]
[2,"Андроповский муниципальный район","Солуно-Дмитриевский сельсовет","07632416","Общество с ограниченной ответственностью \"Кока-кола ЭйчБиСи ЕВРАЗИЯ\" филиал в селе Солуно-Дмитриевском","2603006800","260301001","производство (некомбинированная выработка)+передача+сбыт"]
[3,"Апанасенковский муниципальный район","Село Дивное","07605419","Муниципальное унитарное предприятие \"Жилищно-коммунальногое хозяйство\" Апанасенковского муниципального района Ставропольского края","2602004366","260201001","производство (некомбинированная выработка)+передача+сбыт"]
[4,"Арзгирский муниципальный район","Арзгирский сельсовет","07607402","Муниципальное унитарное предприятие \"Коммунальное хозяйство\" Арзгирского муниципального района Ставропольского края","2604000247","260401001","производство (некомбинированная выработка)+передача+сбыт"]
[5,"ГО Ставропольского края","Город Буденновск","07702000","Федеральное государственное учреждение \"Буденновская квартирно-эксплуатационная часть района\" Министерство обороны Российской Федерации","2624032053","262401001","производство (некомбинированная выработка)+передача+сбыт"]
[6,"ГО Ставропольского края","Город Георгиевск","07707000","Георгиевское муниципальное унитарное предприятие \"Теплосеть\"","2625002189","262501001","производство (некомбинированная выработка)+передача+сбыт"]
[7,"ГО Ставропольского края","Город Георгиевск","07707000","Общество с ограниченной ответственностью \"Георгиевское производственное предприятие \"Кавказ\"","2625023333","262501001","производство (некомбинированная выработка)+передача+сбыт"]
[8,"ГО Ставропольского края","Город Георгиевск","07707000","Открытое акционерное общество \"Хлебокомбинат \"Георгиевский\"","2625012571","262501001","производство (некомбинированная выработка)+передача+сбыт"]
[9,"ГО Ставропольского края","Город Лермонтов","07718000","ЗАО \"Южная энергетическая компания\" филиал в г. Лермонтов Ставропольского края","7704262319","262902001","производство комбинированная выработка"]
[10,"ГО Ставропольского края","Город Лермонтов","07718000","Муниципальное унитарное предприятие \"Лермонтовское городское газовое хозяйство\"","2629005046","262901001","производство (некомбинированная выработка)+сбыт"]
[11,"ГО Ставропольского края","Город Невинномысск","07724000","Закрытое акционерное общество \"Невинномысский маслоэкстракционный завод\"","2631024889","263101001","производство (некомбинированная выработка)+передача+сбыт"]
[12,"ГО Ставропольского края","Город Невинномысск","07724000","Общество с ограниченной ответственностью \"Предприятие им. И.Лапина\"","2631037790","263101001","производство (некомбинированная выработка)+передача+сбыт"]
[13,"ГО Ставропольского края","Город Невинномысск","07724000","Открытое акционерное общество \"Квант-Энергия\"","2631002155","263101001","производство (некомбинированная выработка)+сбыт"]
[14,"ГО Ставропольского края","Город Невинномысск","07724000","Открытое акционерное общество \"Невинномысский Азот\"","2631015563","263101001","производство (некомбинированная выработка)+передача+сбыт"]
[15,"ГО Ставропольского края","Город Невинномысск","07724000","Открытое акционерное общество \"Северо-Кавказская энергоремонтная компания\"","0721009031","263145001","производство (некомбинированная выработка)+сбыт"]
[16,"ГО Ставропольского края","Город Невинномысск","07724000","Открытое акционерное общество \"Теплосеть\" г. Невинномысска","2631006350","263101001","производство (некомбинированная выработка)+передача+сбыт"]
[17,"ГО Ставропольского края","Город Невинномысск","07724000","Филиал \"Невинномысская ГРЭС\" открытого акционерного общества \"Энел ОГК-5\"","6671156423","263102001","производство комбинированная выработка"]
[18,"ГО Ставропольского края","Город Ставрополь","07701000","Государственное унитарное предприятие Ставропольского края \"Ставропольский краевой теплоэнергетический комплекс\"","2635060510","263501001","производство (некомбинированная выработка)+передача+сбыт"]
[19,"ГО Ставропольского края","Город Ставрополь","07701000","Закрытое акционерное общество \"Гермес-52\"","2633002369","263501001","производство (некомбинированная выработка)+передача+сбыт"]
[20,"ГО Ставропольского края","Город Ставрополь","07701000","Закрытое акционерное общество \"Теплоэнерго\"","2635041652","263501001","производство (некомбинированная выработка)+сбыт"]
[21,"ГО Ставропольского края","Город Ставрополь","07701000","Общество с ограниченной ответственностью \"Декоративные культуры\"","2633006116","263601001","производство (некомбинированная выработка)+сбыт"]
[22,"ГО Ставропольского края","Город Ставрополь","07701000","Общество с ограниченной ответственностью \"Центр\"","2634049955","263401001","производство (некомбинированная выработка)+передача+сбыт"]
[23,"ГО Ставропольского края","Город Ставрополь","07701000","Открытое акционерное общество \"Ставропольский радиозавод \"Сигнал\"","2635000092","263501001","производство (некомбинированная выработка)+передача+сбыт"]
[24,"ГО Ставропольского края","Город Ставрополь","07701000","Открытое акционерное общество \"Теплосеть\"","2635095930","263501001","производство (некомбинированная выработка)+передача+сбыт"]
[25,"ГО Ставропольского края","Город Ставрополь","07701000","Открытое акционерное общество Научно-производственный концерн \"ЭСКОМ\"","2634040279","263401001","производство (некомбинированная выработка)+сбыт"]
[26,"ГО Ставропольского края","Город Ставрополь","07701000","государственное учреждение здравоохранения \"Ставропольский краевой клинический кардиологический диспансер\"","2633004373","263601001","производство (некомбинированная выработка)+передача+сбыт"]
[27,"ГО Ставропольского края","Город Ставрополь","07701000","закрытое акционерное общество \"Пассаж\"","2633001132","263601001","производство (некомбинированная выработка)+сбыт"]
[28,"ГО Ставропольского края","Город-курорт Ессентуки","07710000","Общество с ограниченной ответственностью \"Объединение котельных курорта\"","2626027362","262601001","производство (некомбинированная выработка)+передача+сбыт"]
[29,"ГО Ставропольского края","Город-курорт Ессентуки","07710000","Открытое акционерное общество \"Ессентукская Теплосеть\"","2626020720","262601001","производство (некомбинированная выработка)+передача+сбыт"]
[30,"ГО Ставропольского края","Город-курорт Железноводск","07712000","Муниципальное унитарное предприятие \"Теплосеть\"","2627007954","262701001","производство (некомбинированная выработка)+передача+сбыт"]
[31,"ГО Ставропольского края","Город-курорт Железноводск","07712000","Общество с ограниченной ответственностью \"Объединение котельных курорта\"","2627016807","262701001","производство (некомбинированная выработка)+передача+сбыт"]
[32,"ГО Ставропольского края","Город-курорт Кисловодск","07715000","Общество с ограниченной ответственностью \"ЛУКОЙЛ-Ростовэнерго\" Ставропольское производственное подразделение","6164288981","262845001","производство комбинированная выработка"]
[33,"ГО Ставропольского края","Город-курорт Кисловодск","07715000","Открытое акционерное общество \"Теплосеть\"","2628008414","262801001","производство (некомбинированная выработка)+передача+сбыт"]
[34,"ГО Ставропольского края","Город-курорт Кисловодск","07715000","Управление Федеральной службы безопасности Российской Федерации по Ставропольскому краю (стационар медико-санитарной части в г. Кисловодске)","2634025295","263401001","производство (некомбинированная выработка)+передача+сбыт"]
[35,"ГО Ставропольского края","Город-курорт Кисловодск","07715000","Федеральное государственное учреждение \"Кисловодский центральный военный санаторий\" Министерства обороны Российской Федерации","2628007770","262801001","производство (некомбинированная выработка)+передача+сбыт"]
[36,"ГО Ставропольского края","Город-курорт Пятигорск","07727000","Общество с ограниченной ответственностью \"Санаторий \"Тарханы\"","2632012646","263201001","производство (некомбинированная выработка)+передача+сбыт"]
[37,"ГО Ставропольского края","Город-курорт Пятигорск","07727000","Государственное учреждение здравоохранения \"Ставропольский краевой госпиталь для ветеранов войн\"","2632055940","263201001","производство (некомбинированная выработка)+передача+сбыт"]
[38,"ГО Ставропольского края","Город-курорт Пятигорск","07727000","Индивидуальный предприниматель Шипачёва Мария Ивановна","263200026037","000000000","производство (некомбинированная выработка)+сбыт"]
[39,"ГО Ставропольского края","Город-курорт Пятигорск","07727000","Лечебно-профилактическое учреждение профсоюзов \"Пятигорская бальнеогрязелечебница\"","2632054854","263201001","производство (некомбинированная выработка)+передача+сбыт"]
[40,"ГО Ставропольского края","Город-курорт Пятигорск","07727000","Лечебно-профилактическое учреждение профсоюзов Санаторий \"Ленинские скалы\"","2632053843","263201001","производство (некомбинированная выработка)+передача+сбыт"]
[41,"ГО Ставропольского края","Город-курорт Пятигорск","07727000","Лечебно-профилактическое учреждение профсоюзов Санаторий \"РОДНИК\"","2632053836","263201001","производство (некомбинированная выработка)+передача+сбыт"]
[42,"ГО Ставропольского края","Город-курорт Пятигорск","07727000","Муниципальное унитарное предприятие \"Пятигорские инженерные сети\"","2632090725","263201001","производство (некомбинированная выработка)+передача+сбыт"]
[43,"ГО Ставропольского края","Город-курорт Пятигорск","07727000","Муниципальное унитарное предприятие города Пятигорска Ставропольского края \"Пятигорский Теплоэнергоетический Комплекс\"","2632016182","263201001","производство (некомбинированная выработка)+передача+сбыт"]
[44,"ГО Ставропольского края","Город-курорт Пятигорск","07727000","Общество с ограниченной ответственностью \"Пятигорсктеплосервис\"","2632062277","263201001","производство (некомбинированная выработка)+передача+сбыт"]
[45,"ГО Ставропольского края","Город-курорт Пятигорск","07727000","Общество с ограниченной ответственностью \"ТЕХНО-Сервис\"","2632059130","263201001","производство (некомбинированная выработка)+передача+сбыт"]
[46,"ГО Ставропольского края","Город-курорт Пятигорск","07727000","Ставропольское производственное подразделение общества с ограниченной ответственностью \"ЮГК-РОСТОВЭНЕРГО\"","3015087458","301501001","производство (некомбинированная выработка)+передача+сбыт"]
[47,"Георгиевский муниципальный район","Незлобненский сельсовет","07615413","Открытое акционерное общество \"Черномортранснефть\" (филиал \"Тихорецкое районное управление магистральных нефтепроводов\"","2315072242","262502001","производство (некомбинированная выработка)+передача+сбыт"]
[48,"Грачевский муниципальный район","Грачевский сельсовет","07617404","Муниципальное унитарное предприятие \"Коммунальное хозяйство\" Грачёвского муниципального района Ставропольского края","2606000122","260601001","производство (некомбинированная выработка)+передача+сбыт"]
[49,"Изобильненский муниципальный район","Город Изобильный","07620101","Общество с ограниченной ответственностью \"Газпром трансгаз Ставрополь\"","2636032629","263601001","производство (некомбинированная выработка)+передача+сбыт"]
[50,"Изобильненский муниципальный район","Город Изобильный","07620101","Открытое акционерное общество \"Завод Атлант\"","2607000333","260701001","производство (некомбинированная выработка)+передача+сбыт"]
[51,"Изобильненский муниципальный район","Город Изобильный","07620101","Открытое акционерное общество \"Ставропольсахар\"","2607012219","260701001","производство комбинированная выработка"]
[52,"Изобильненский муниципальный район","Поселок Рыздвяный","07620153","Филиал общества с ограниченной ответственностью \"Газпром ПХГ\" \"Ставропольское управление подземного хранения газа\"","5003065767","260702001","производство (некомбинированная выработка)+передача+сбыт"]
[53,"Изобильненский муниципальный район","Поселок Солнечнодольск","07620155","Закрытое акционерное общество \"Ставропольские коммунальные системы\"","2607019831","260701001","производство (некомбинированная выработка)+передача+сбыт"]
[54,"Изобильненский муниципальный район","Поселок Солнечнодольск","07620155","Филиал открытого акционерного общества \"ОГК-2\" - Ставропольская ГРЭС","2607018122","260701001","производство комбинированная выработка"]
[55,"Кировский муниципальный район","Город Новопавловск","07625101","ГУП  \"Жилищно-коммунальное хозяйство Кировского района\"","2609014934","260901001","производство (некомбинированная выработка)+передача+сбыт"]
[56,"Кочубеевский муниципальный район","Казьминский сельсовет","07628419","Открытое акционерное общество Северо-Кавказская энергетическая компания \"Нефтегазгеотерм\"","2630024131","263001001","производство (некомбинированная выработка)+передача+сбыт"]
[57,"Кочубеевский муниципальный район","Село Кочубеевское","07628422","Муниципальное унитарное предприятие Ставрополького края \"Жилищно-коммунальное хозяйство Кочубеевского района\"","2610012931","261001001","производство (некомбинированная выработка)+передача+сбыт"]
[58,"Курский муниципальный район","Курский сельсовет","07633407","Муниципальное унитарное предприятие Курского муниципального района Ставропольского края \"Жилищнокоммунальное хозяйство Курского района\"","2612016970","261201001","производство (некомбинированная выработка)+передача+сбыт"]
[59,"Минераловодский муниципальный район","Город Минеральные Воды","07639101","Дирекция по тепловодоснабжению - СП Северо-Кавказской жележной дороги - филиал ОАО \"РЖД\"","7708503727","997650099","производство (некомбинированная выработка)+передача+сбыт"]
[60,"Минераловодский муниципальный район","Гражданский сельсовет","07639402","Общество с ограниченной ответственностью \"КАЗАЧЬЕ\"","2630032968","263001001","производство (некомбинированная выработка)+передача+сбыт"]
[61,"Минераловодский муниципальный район","Побегайловский сельсовет","07639419","Государственное учреждение здравоохранения \"Краевая Кумагорская больница восстановительного лечения\"","2630019702","263001001","производство (некомбинированная выработка)+передача+сбыт"]
[62,"Нефтекумский муниципальный район","Поселок Затеречный","07641153","Общество с орграниченной ответственностью \"Жилищно-коммунальное хозяйство посёлка Затеречный\"","2614020161","261401001","производство (некомбинированная выработка)+сбыт"]
[63,"Петровский муниципальный район","Константиновский сельсовет","07646413","Муниципальное унитарное предприятие муниципального образования Константиновского сельсовета Петровского района Ставропольского края \"Пчелка\"","2617013349","261701001","производство (некомбинированная выработка)+передача+сбыт"]
[64,"Петровский муниципальный район","Просянский сельсовет","07646418","Муниципальное унитарное предприятие  \"Просянское\"","2617011359","261701001","производство (некомбинированная выработка)+передача+сбыт"]
[65,"Петровский муниципальный район","Село Благодатное","07646402","Муниципальное Казённое предприятие \"Надежда\" муниципального образования села Благодатное Петровского района Ставропольского края","2617013148","261701001","производство (некомбинированная выработка)+сбыт"]
[66,"Степновский муниципальный район","Степновский сельсовет","07652426","Муниципальное унитарное предприятие \"Коммунальное хозяйство\" Степновского муниципального района Ставропольского края","2620000580","262001001","производство (некомбинированная выработка)+передача+сбыт"]
[67,"Туркменский муниципальный район","Летнеставочный сельсовет","07656419","Муниципальное унитраное предприятие \"Коммунальное хозяйство\" Туркменского района","2622003515","262201001","производство (некомбинированная выработка)+передача+сбыт"]
[68,null,null,null,"Государственное унитарное предприятие Домоуправление №2 при Ставропольской КЭЧ района","2634036829","263401001","производство (некомбинированная выработка)+сбыт"]
[69,null,null,null,"Государственное учреждение \"Санаторий \"Железноводск\" Министерства внутренних дел Российской Федерации","2627012055","262701001","производство (некомбинированная выработка)+передача+сбыт"]
[70,null,null,null,"Общество с ограниченной ответственностью \"Топаз+\"","2619006227","261901001","производство (некомбинированная выработка)+передача+сбыт"]

{"sheet":"REESTR_TEMP","index":14,"n_rows":1,"n_cols":8,"rows_kept":1,"cut":false,"hidden":true,"merged":[]}
[null,"МР","МО","МО ОКТМО","ОРГАНИЗАЦИЯ","ИНН","КПП","ВИД ДЕЯТЕЛЬНОСТИ"]

{"sheet":"REESTR","index":15,"n_rows":336,"n_cols":5,"rows_kept":336,"cut":false,"hidden":true,"merged":[]}
["МО","МР","МР_ОКТМО"]
["Александровский муниципальный район","Александровский муниципальный район","07602000","Александровский муниципальный район","MO_LIST_2"]
["Александровский муниципальный район","Александровский сельсовет","07602402","Андроповский муниципальный район","MO_LIST_3"]
["Александровский муниципальный район","Калиновский сельсовет","07602407","Апанасенковский муниципальный район","MO_LIST_4"]
["Александровский муниципальный район","Круглолесский сельсовет","07602410","Арзгирский муниципальный район","MO_LIST_5"]
["Александровский муниципальный район","Новокавказский сельсовет","07602413","Благодарненский муниципальный район","MO_LIST_6"]
["Александровский муниципальный район","Саблинский сельсовет","07602416","Буденновский муниципальный район","MO_LIST_7"]
["Александровский муниципальный район","Село Грушевское","07602404","ГО Ростовская область","MO_LIST_8"]
["Александровский муниципальный район","Село Северное","07602419","ГО Ставропольского края","MO_LIST_9"]
["Александровский муниципальный район","Средненский сельсовет","07602422","Георгиевский муниципальный район","MO_LIST_10"]
["Андроповский муниципальный район","Андроповский муниципальный район","07632000","Грачевский муниципальный район","MO_LIST_11"]
["Андроповский муниципальный район","Водораздельный сельсовет","07632402","Изобильненский муниципальный район","MO_LIST_12"]
["Андроповский муниципальный район","Казинский сельсовет","07632406","Ипатовский муниципальный район","MO_LIST_13"]
["Андроповский муниципальный район","Красноярский сельсовет","07632407","Кировский муниципальный район","MO_LIST_14"]
["Андроповский муниципальный район","Крымгиреевский сельсовет","07632408","Кочубеевский муниципальный район","MO_LIST_15"]
["Андроповский муниципальный район","Курсавский сельсовет","07632410","Красногвардейский муниципальный район","MO_LIST_16"]
["Андроповский муниципальный район","Куршавский сельсовет","07632412","Курский муниципальный район","MO_LIST_17"]
["Андроповский муниципальный район","Новоянкульский сельсовет","07632414","Левокумский муниципальный район","MO_LIST_18"]
["Андроповский муниципальный район","Село Султан","07632419","Минераловодский муниципальный район","MO_LIST_19"]
["Андроповский муниципальный район","Солуно-Дмитриевский сельсовет","07632416","Муниципальные образования города Москвы","MO_LIST_20"]
["Андроповский муниципальный район","Станица Воровсколесская","07632404","Нефтекумский муниципальный район","MO_LIST_21"]
["Андроповский муниципальный район","Янкульский сельсовет","07632422","Новоалександровский муниципальный район","MO_LIST_22"]
["Апанасенковский муниципальный район","Айгурский сельсовет","07605402","Новоселицкий муниципальный район","MO_LIST_23"]
["Апанасенковский муниципальный район","Апанасенковский муниципальный район","07605000","Петровский муниципальный район","MO_LIST_24"]
["Апанасенковский муниципальный район","Дербетовский сельсовет","07605416","Предгорный муниципальный район","MO_LIST_25"]
["Апанасенковский муниципальный район","Село Апанасенковское","07605404","Советский муниципальный район","MO_LIST_26"]
["Апанасенковский муниципальный район","Село Белые Копани","07605407","Степновский муниципальный район","MO_LIST_27"]
["Апанасенковский муниципальный район","Село Воздвиженское","07605410","Труновский муниципальный район","MO_LIST_28"]
["Апанасенковский муниципальный район","Село Вознесеновское","07605413","Туркменский муниципальный район","MO_LIST_29"]
["Апанасенковский муниципальный район","Село Дивное","07605419","Шпаковский муниципальный район","MO_LIST_30"]
["Апанасенковский муниципальный район","Село Киевка","07605422"]
["Апанасенковский муниципальный район","Село Малая Джалга","07605425"]
["Апанасенковский муниципальный район","Село Манычское","07605428"]
["Апанасенковский муниципальный район","Село Рагули","07605431"]
["Арзгирский муниципальный район","Арзгирский муниципальный район","07607000"]
["Арзгирский муниципальный район","Арзгирский сельсовет","07607402"]
["Арзгирский муниципальный район","Новоромановский сельсовет","07607404"]
["Арзгирский муниципальный район","Село Каменная Балка","07607403"]
["Арзгирский муниципальный район","Село Петропавловское","07607407"]
["Арзгирский муниципальный район","Село Родниковское","07607410"]
["Арзгирский муниципальный район","Село Садовое","07607413"]
["Арзгирский муниципальный район","Село Серафимовское","07607416"]
["Арзгирский муниципальный район","Чограйский сельсовет","07607422"]
["Благодарненский муниципальный район","Cело Елизаветинское","07610410"]
["Благодарненский муниципальный район","Александрийский сельсовет","07610402"]
["Благодарненский муниципальный район","Аул Эдельбай","07610428"]
["Благодарненский муниципальный район","Благодарненский муниципальный район","07610000"]
["Благодарненский муниципальный район","Город Благодарный","07610101"]
["Благодарненский муниципальный район","Каменнобалковский сельсовет","07610413"]
["Благодарненский муниципальный район","Красноключевский сельсовет","07610416"]
["Благодарненский муниципальный район","Село Алексеевское","07610404"]
["Благодарненский муниципальный район","Село Бурлацкое","07610407"]
["Благодарненский муниципальный район","Село Мирное","07610417"]
["Благодарненский муниципальный район","Село Сотниковское","07610419"]
["Благодарненский муниципальный район","Село Спасское","07610422"]
["Благодарненский муниципальный район","Село Шишкино","07610427"]
["Благодарненский муниципальный район","Ставропольский сельсовет","07610425"]
["Благодарненский муниципальный район","Хутор Большевик","07610406"]
["Буденновский муниципальный район","Архиповский сельсовет","07612404"]
["Буденновский муниципальный район","Буденновский муниципальный район","07612000"]
["Буденновский муниципальный район","Искровский сельсовет","07612407"]
["Буденновский муниципальный район","Краснооктябрьский сельсовет","07612409"]
["Буденновский муниципальный район","Новожизненский сельсовет","07612410"]
["Буденновский муниципальный район","Орловский сельсовет","07612413"]
["Буденновский муниципальный район","Покойненский сельсовет","07612416"]
["Буденновский муниципальный район","Преображенский сельсовет","07612420"]
["Буденновский муниципальный район","Село Архангельское","07612402"]
["Буденновский муниципальный район","Село Прасковея","07612419"]
["Буденновский муниципальный район","Село Толстово-Васюковское","07612427"]
["Буденновский муниципальный район","Стародубский сельсовет","07612422"]
["Буденновский муниципальный район","Терский сельсовет","07612425"]
["Буденновский муниципальный район","Томузловский сельсовет","07612429"]
["ГО Ростовская область","ГО Ростовская область","06700000"]
["ГО Ростовская область","Город Ростов-на-Дону","06701000"]
["ГО Ставропольского края","ГО Ставропольского края","07700000"]
["ГО Ставропольского края","Город Буденновск","07702000"]
["ГО Ставропольского края","Город Георгиевск","07707000"]
["ГО Ставропольского края","Город Лермонтов","07718000"]
["ГО Ставропольского края","Город Невинномысск","07724000"]
["ГО Ставропольского края","Город Ставрополь","07701000"]
["ГО Ставропольского края","Город-курорт Ессентуки","07710000"]
["ГО Ставропольского края","Город-курорт Железноводск","07712000"]
["ГО Ставропольского края","Город-курорт Кисловодск","07715000"]
["ГО Ставропольского края","Город-курорт Пятигорск","07727000"]
["Георгиевский муниципальный район","Александрийский сельсовет","07615402"]
["Георгиевский муниципальный район","Балковский сельсовет","07615403"]
["Георгиевский муниципальный район","Георгиевский муниципальный район","07615000"]
["Георгиевский муниципальный район","Крутоярский сельсовет","07615408"]
["Георгиевский муниципальный район","Незлобненский сельсовет","07615413"]
["Георгиевский муниципальный район","Поселок Новый","07615415"]
["Георгиевский муниципальный район","Село Краснокумское","07615406"]
["Георгиевский муниципальный район","Село Новозаведенное","07615416"]
["Георгиевский муниципальный район","Село Обильное","07615419"]
["Георгиевский муниципальный район","Станица Георгиевская","07615404"]
["Георгиевский муниципальный район","Станица Лысогорская","07615410"]
["Георгиевский муниципальный район","Станица Подгорная","07615422"]
["Георгиевский муниципальный район","Ульяновский сельсовет","07615425"]
["Георгиевский муниципальный район","Урухский сельсовет","07615428"]
["Георгиевский муниципальный район","Шаумяновский сельсовет","07615431"]
["Грачевский муниципальный район","Грачевский муниципальный район","07617000"]
["Грачевский муниципальный район","Грачевский сельсовет","07617404"]
["Грачевский муниципальный район","Красный сельсовет","07617407"]
["Грачевский муниципальный район","Кугультинский сельсовет","07617410"]
["Грачевский муниципальный район","Село Бешпагир","07617401"]
["Грачевский муниципальный район","Село Тугулук","07617422"]
["Грачевский муниципальный район","Сергиевский сельсовет","07617413"]
["Грачевский муниципальный район","Спицевский сельсовет","07617416"]
["Грачевский муниципальный район","Старомарьевский сельсовет","07617419"]
["Изобильненский муниципальный район","Город Изобильный","07620101"]
["Изобильненский муниципальный район","Изобильненский муниципальный район","07620000"]
["Изобильненский муниципальный район","Каменнобродский сельсовет","07620404"]
["Изобильненский муниципальный район","Московский сельсовет","07620407"]
["Изобильненский муниципальный район","Новоизобильненский сельсовет","07620409"]
["Изобильненский муниципальный район","Передовой сельсовет","07620412"]
["Изобильненский муниципальный район","Подлужненский сельсовет","07620413"]
["Изобильненский муниципальный район","Поселок Рыздвяный","07620153"]
["Изобильненский муниципальный район","Поселок Солнечнодольск","07620155"]
["Изобильненский муниципальный район","Рождественский сельсовет","07620416"]
["Изобильненский муниципальный район","Село Птичье","07620414"]
["Изобильненский муниципальный район","Село Тищенское","07620422"]
["Изобильненский муниципальный район","Станица Баклановская","07620402"]
["Изобильненский муниципальный район","Станица Новотроицкая","07620410"]
["Изобильненский муниципальный район","Староизобильненский сельсовет","07620419"]
["Изобильненский муниципальный район","Хутор Спорный","07620418"]
["Ипатовский муниципальный район","Большевистский сельсовет","07622402"]
["Ипатовский муниципальный район","Винодельненский сельсовет","07622410"]
["Ипатовский муниципальный район","Город Ипатово","07622101"]
["Ипатовский муниципальный район","Добровольно-Васильевский сельсовет","07622413"]
["Ипатовский муниципальный район","Золотаревский сельсовет","07622416"]
["Ипатовский муниципальный район","Ипатовский муниципальный район","07622000"]
["Ипатовский муниципальный район","Кевсалинский сельсовет","07622422"]
["Ипатовский муниципальный район","Красочный сельсовет","07622425"]
["Ипатовский муниципальный район","Леснодачненский сельсовет","07622427"]
["Ипатовский муниципальный район","Лиманский сельсовет","07622428"]
["Ипатовский муниципальный район","Мало-Барханчакский сельсовет","07622429"]
["Ипатовский муниципальный район","Октябрьский сельсовет","07622431"]
["Ипатовский муниципальный район","Первомайский сельсовет","07622434"]
["Ипатовский муниципальный район","Село Большая Джалга","07622404"]
["Ипатовский муниципальный район","Село Бурукшун","07622407"]
["Ипатовский муниципальный район","Советскорунный сельсовет","07622437"]
["Ипатовский муниципальный район","Тахтинский сельсовет","07622440"]
["Кировский муниципальный район","Горнозаводский сельсовет","07625402"]
["Кировский муниципальный район","Город Новопавловск","07625101"]
["Кировский муниципальный район","Зольский сельсовет","07625404"]
["Кировский муниципальный район","Кировский муниципальный район","07625000"]
["Кировский муниципальный район","Комсомольский сельсовет","07625407"]
["Кировский муниципальный район","Новосредненский сельсовет","07625416"]
["Кировский муниципальный район","Орловский сельсовет","07625417"]
["Кировский муниципальный район","Посёлок Фазанный","07625428"]
["Кировский муниципальный район","Советский сельсовет","07625419"]
["Кировский муниципальный район","Станица Марьинская","07625410"]
["Кировский муниципальный район","Старопавловский сельсовет","07625422"]
["Кочубеевский муниципальный район","Балахоновский сельсовет","07628402"]
["Кочубеевский муниципальный район","Барсуковский сельсовет","07628404"]
["Кочубеевский муниципальный район","Васильевский сельсовет","07628440"]
["Кочубеевский муниципальный район","Вревский сельсовет","07628407"]
["Кочубеевский муниципальный район","Георгиевский сельсовет","07628408"]
["Кочубеевский муниципальный район","Заветненский сельсовет","07628413"]
["Кочубеевский муниципальный район","Ивановский сельсовет","07628416"]
["Кочубеевский муниципальный район","Казьминский сельсовет","07628419"]
["Кочубеевский муниципальный район","Кочубеевский муниципальный район","07628000"]
["Кочубеевский муниципальный район","Мищенский сельсовет","07628423"]
["Кочубеевский муниципальный район","Надзорненский сельсовет","07628424"]
["Кочубеевский муниципальный район","Новодеревенский сельсовет","07628425"]
["Кочубеевский муниципальный район","Село Кочубеевское","07628422"]
["Кочубеевский муниципальный район","Станица Беломечетская","07628406"]
["Кочубеевский муниципальный район","Стародворцовский сельсовет","07628430"]
["Кочубеевский муниципальный район","Усть-Невинский сельсовет","07628435"]
["Красногвардейский муниципальный район","Коммунаровский сельсовет","07630404"]
["Красногвардейский муниципальный район","Красногвардейский муниципальный район","07630000"]
["Красногвардейский муниципальный район","Медвеженский сельсовет","07630413"]
["Красногвардейский муниципальный район","Привольненский сельсовет","07630425"]
["Красногвардейский муниципальный район","Родыковский сельсовет","07630428"]
["Красногвардейский муниципальный район","Село Дмитриевское","07630402"]
["Красногвардейский муниципальный район","Село Красногвардейское","07630407"]
["Красногвардейский муниципальный район","Село Ладовская Балка","07630410"]
["Красногвардейский муниципальный район","Село Новомихайловское","07630416"]
["Красногвардейский муниципальный район","Село Покровское","07630419"]
["Красногвардейский муниципальный район","Село Преградное","07630422"]
["Красногвардейский муниципальный район","Штурмовский сельсовет","07630443"]
["Курский муниципальный район","Балтийский сельсовет","07633402"]
["Курский муниципальный район","Галюгаевский сельсовет","07633404"]
["Курский муниципальный район","Кановский сельсовет","07633406"]
["Курский муниципальный район","Курский муниципальный район","07633000"]
["Курский муниципальный район","Курский сельсовет","07633407"]
["Курский муниципальный район","Мирненский сельсовет","07633410"]
["Курский муниципальный район","Полтавский сельсовет","07633413"]
["Курский муниципальный район","Ростовановский сельсовет","07633416"]
["Курский муниципальный район","Рощинский сельсовет","07633419"]
["Курский муниципальный район","Русский сельсовет","07633422"]
["Курский муниципальный район","Село Эдиссия","07633428"]
["Курский муниципальный район","Серноводский сельсовет","07633425"]
["Курский муниципальный район","Станица Стодеревская","07633426"]
["Левокумский муниципальный район","Бургун-Маджарский сельсовет","07636402"]
["Левокумский муниципальный район","Величаевский сельсовет","07636404"]
["Левокумский муниципальный район","Владимировский сельсовет","07636407"]
["Левокумский муниципальный район","Заринский сельсовет","07636409"]
["Левокумский муниципальный район","Левокумский муниципальный район","07636000"]
["Левокумский муниципальный район","Николо-Александровский сельсовет","07636413"]
["Левокумский муниципальный район","Поселок Новокумский","07636414"]
["Левокумский муниципальный район","Село Левокумское","07636410"]
["Левокумский муниципальный район","Село Правокумское","07636416"]
["Левокумский муниципальный район","Село Приозерское","07636417"]
["Левокумский муниципальный район","Село Урожайное","07636422"]
["Левокумский муниципальный район","Турксадский сельсовет","07636419"]
["Минераловодский муниципальный район","Город Минеральные Воды","07639101"]
["Минераловодский муниципальный район","Гражданский сельсовет","07639402"]
["Минераловодский муниципальный район","Левокумский сельсовет","07639421"]
["Минераловодский муниципальный район","Ленинский сельсовет","07639407"]
["Минераловодский муниципальный район","Марьино-Колодцевский сельсовет","07639410"]
["Минераловодский муниципальный район","Минераловодский муниципальный район","07639000"]
["Минераловодский муниципальный район","Нижнеалександровский сельсовет","07639416"]
["Минераловодский муниципальный район","Первомайский сельсовет","07639418"]
["Минераловодский муниципальный район","Перевальненский сельсовет","07639420"]
["Минераловодский муниципальный район","Побегайловский сельсовет","07639419"]
["Минераловодский муниципальный район","Поселок Аджиевский","07639152"]
["Минераловодский муниципальный район","Прикумский сельсовет","07639422"]
["Минераловодский муниципальный район","Розовский сельсовет","07639425"]
["Минераловодский муниципальный район","Село Греческое","07639404"]
["Минераловодский муниципальный район","Село Нагутское","07639413"]
["Минераловодский муниципальный район","Ульяновский сельсовет","07639430"]
["Муниципальные образования города Москвы","Город Москва","04530000"]
["Муниципальные образования города Москвы","Муниципальные образования города Москвы","04500000"]
["Нефтекумский муниципальный район","Город Нефтекумск","07641101"]
["Нефтекумский муниципальный район","Закумский сельсовет","07641403"]
["Нефтекумский муниципальный район","Зимнеставочный сельсовет","07641404"]
["Нефтекумский муниципальный район","Зункарский сельсовет","07641405"]
["Нефтекумский муниципальный район","Кара-Тюбинский сельсовет","07641407"]
["Нефтекумский муниципальный район","Каясулинский сельсовет","07641410"]
["Нефтекумский муниципальный район","Махмуд-Мектебский сельсовет","07641413"]
["Нефтекумский муниципальный район","Нефтекумский муниципальный район","07641000"]
["Нефтекумский муниципальный район","Новкус-Артезианский сельсовет","07641416"]
["Нефтекумский муниципальный район","Озек-Суатский сельсовет","07641419"]
["Нефтекумский муниципальный район","Поселок Затеречный","07641153"]
["Нефтекумский муниципальный район","Село Ачикулак","07641402"]
["Нефтекумский муниципальный район","Тукуй-Мектебский сельсовет","07641422"]
["Новоалександровский муниципальный район","Город Новоалександровск","07643101"]
["Новоалександровский муниципальный район","Горьковский сельсовет","07643402"]
["Новоалександровский муниципальный район","Григорополисский сельсовет","07643404"]
["Новоалександровский муниципальный район","Краснозоринский сельсовет","07643407"]
["Новоалександровский муниципальный район","Красночервонный сельсовет","07643423"]
["Новоалександровский муниципальный район","Новоалександровский муниципальный район","07643000"]
["Новоалександровский муниципальный район","Присадовый сельсовет","07643410"]
["Новоалександровский муниципальный район","Радужский сельсовет","07643412"]
["Новоалександровский муниципальный район","Раздольненский сельсовет","07643413"]
["Новоалександровский муниципальный район","Светлинский сельсовет","07643417"]
["Новоалександровский муниципальный район","Станица Кармалиновская","07643406"]
["Новоалександровский муниципальный район","Станица Расшеватская","07643416"]
["Новоалександровский муниципальный район","Темижбекский сельсовет","07643419"]
["Новоселицкий муниципальный район","Журавский сельсовет","07644404"]
["Новоселицкий муниципальный район","Новомаякский сельсовет","07644409"]
["Новоселицкий муниципальный район","Новоселицкий муниципальный район","07644000"]
["Новоселицкий муниципальный район","Поселок Щелкан","07644420"]
["Новоселицкий муниципальный район","Село Долиновка","07644402"]
["Новоселицкий муниципальный район","Село Китаевское","07644407"]
["Новоселицкий муниципальный район","Село Новоселицкое","07644410"]
["Новоселицкий муниципальный район","Село Падинское","07644412"]
["Новоселицкий муниципальный район","Село Чернолесское","07644413"]
["Петровский муниципальный район","Высоцкий сельсовет","07646404"]
["Петровский муниципальный район","Город Светлоград","07646101"]
["Петровский муниципальный район","Дон-Балковский сельсовет","07646410"]
["Петровский муниципальный район","Константиновский сельсовет","07646413"]
["Петровский муниципальный район","Петровский муниципальный район","07646000"]
["Петровский муниципальный район","Прикалаусский сельсовет","07646417"]
["Петровский муниципальный район","Просянский сельсовет","07646418"]
["Петровский муниципальный район","Рогато-Балковский сельсовет","07646419"]
["Петровский муниципальный район","Село Благодатное","07646402"]
["Петровский муниципальный район","Село Гофицкое","07646407"]
["Петровский муниципальный район","Село Николина Балка","07646416"]
["Петровский муниципальный район","Село Сухая Буйвола","07646422"]
["Петровский муниципальный район","Село Шведино","07646428"]
["Петровский муниципальный район","Шангалинский сельсовет","07646425"]
["Предгорный муниципальный район","Винсадский сельсовет","07648410"]
["Предгорный муниципальный район","Ессентукский сельсовет","07648413"]
["Предгорный муниципальный район","Нежинский сельсовет","07648416"]
["Предгорный муниципальный район","Новоблагодарненский сельсовет","07648422"]
["Предгорный муниципальный район","Подкумский сельсовет","07648424"]
["Предгорный муниципальный район","Поселок Мирный","07648415"]
["Предгорный муниципальный район","Предгорный муниципальный район","07648000"]
["Предгорный муниципальный район","Пригородный сельсовет","07648425"]
["Предгорный муниципальный район","Пятигорский сельсовет","07648428"]
["Предгорный муниципальный район","Станица Бекешевская","07648402"]
["Предгорный муниципальный район","Станица Боргустанская","07648407"]
["Предгорный муниципальный район","Суворовский сельсовет","07648431"]
["Предгорный муниципальный район","Тельмановский сельсовет","07648432"]
["Предгорный муниципальный район","Этокский сельсовет","07648434"]
["Предгорный муниципальный район","Юцкий сельсовет","07648437"]
["Предгорный муниципальный район","Яснополянский сельсовет","07648440"]
["Советский муниципальный район","Восточный сельсовет","07650402"]
["Советский муниципальный район","Город Зеленокумск","07650101"]
["Советский муниципальный район","Нинский сельсовет","07650407"]
["Советский муниципальный район","Правокумский сельсовет","07650413"]
["Советский муниципальный район","Село Горькая Балка","07650404"]
["Советский муниципальный район","Село Отказное","07650410"]
["Советский муниципальный район","Советский муниципальный район","07650000"]
["Советский муниципальный район","Солдато-Александровский сельсовет","07650416"]
["Степновский муниципальный район","Богдановский сельсовет","07652402"]
["Степновский муниципальный район","Варениковский сельсовет","07652404"]
["Степновский муниципальный район","Верхнестепновский сельсовет","07652407"]
["Степновский муниципальный район","Иргаклинский сельсовет","07652410"]
["Степновский муниципальный район","Ольгинский сельсовет","07652415"]
["Степновский муниципальный район","Село Соломенское","07652420"]
["Степновский муниципальный район","Степновский муниципальный район","07652000"]
["Степновский муниципальный район","Степновский сельсовет","07652426"]
["Труновский муниципальный район","Безопасненский сельсовет","07654402"]
["Труновский муниципальный район","Донской сельсовет","07654404"]
["Труновский муниципальный район","Кировский сельсовет","07654407"]
["Труновский муниципальный район","Село Новая Кугульта","07654410"]
["Труновский муниципальный район","Село Подлесное","07654413"]
["Труновский муниципальный район","Труновский муниципальный район","07654000"]
["Труновский муниципальный район","Труновский сельсовет","07654416"]
["Туркменский муниципальный район","Владимировский сельсовет","07656401"]
["Туркменский муниципальный район","Кендже-Кулакский сельсовет","07656407"]
["Туркменский муниципальный район","Красноманычский сельсовет","07656410"]
["Туркменский муниципальный район","Куликово-Копанский сельсовет","07656413"]
["Туркменский муниципальный район","Кучерлинский сельсовет","07656416"]
["Туркменский муниципальный район","Летнеставочный сельсовет","07656419"]
["Туркменский муниципальный район","Новокучерлинский сельсовет","07656424"]
["Туркменский муниципальный район","Овощинский сельсовет","07656426"]
["Туркменский муниципальный район","Село Казгулак","07656402"]
["Туркменский муниципальный район","Село Камбулат","07656404"]
["Туркменский муниципальный район","Село Малые Ягуры","07656422"]
["Туркменский муниципальный район","Туркменский муниципальный район","07656000"]
["Шпаковский муниципальный район","Верхнерусский сельсовет","07658402"]
["Шпаковский муниципальный район","Город Михайловск","07658101"]
["Шпаковский муниципальный район","Деминский сельсовет","07658404"]
["Шпаковский муниципальный район","Дубовский сельсовет","07658406"]
["Шпаковский муниципальный район","Казинский сельсовет","07658408"]
["Шпаковский муниципальный район","Надеждинский сельсовет","07658410"]
["Шпаковский муниципальный район","Пелагиадский сельсовет","07658416"]
["Шпаковский муниципальный район","Сенгилеевский сельсовет","07658419"]
["Шпаковский муниципальный район","Станица Новомарьевская","07658413"]
["Шпаковский муниципальный район","Татарский сельсовет","07658422"]
["Шпаковский муниципальный район","Темнолесский сельсовет","07658425"]
["Шпаковский муниципальный район","Цимлянский сельсовет","07658428"]
["Шпаковский муниципальный район","Шпаковский муниципальный район","07658000"]

{"sheet":"TEHSHEET","index":16,"n_rows":84,"n_cols":4,"rows_kept":84,"cut":false,"hidden":true,"merged":[]}
["Алтайский край"]
["Амурская область","logical",null,"year_range"]
["Архангельская область","да",null,"2007"]
["Астраханская область","нет",null,"2008"]
["Белгородская область",null,null,"2009"]
["Брянская область",null,null,"2010"]
["Владимирская область",null,null,"2011"]
["Волгоградская область",null,null,"2012"]
["Вологодская область",null,null,"2013"]
["Воронежская область",null,null,"2014"]
["г. Москва",null,null,"2015"]
["г.Байконур",null,null,"2016"]
["г.Санкт-Петербург",null,null,"2017"]
["Еврейская автономная область",null,null,"2018"]
["Забайкальский край",null,null,"2019"]
["Ивановская область",null,null,"2020"]
["Иркутская область"]
["Кабардино-Балкарская республика","kind_of_activity"]
["Калининградская область","Передача+Сбыт"]
["Калужская область","Передача"]
["Камчатский край","производство комбинированная выработка"]
["Карачаево-Черкесская республика","производство (некомбинированная выработка)+передача+сбыт"]
["Кемеровская область","производство (некомбинированная выработка)+передача"]
["Кировская область","производство (некомбинированная выработка)+сбыт"]
["Костромская область","производство (некомбинированная выработка)"]
["Краснодарский край"]
["Красноярский край"]
["Курганская область"]
["Курская область"]
["Ленинградская область"]
["Липецкая область"]
["Магаданская область"]
["Московская область","тарифы для цены(2)"]
["Мурманская область","горячая вода"]
["Ненецкий автономный округ","отборный пар давлением от 1,2 до 2,5 кг/см2"]
["Нижегородская область","отборный пар давлением от 2,5 до 7,0 кг/см3"]
["Новгородская область","отборный пар давлением от 7,0 до 13,0 кг/см4"]
["Новосибирская область","отборный пар давлением свыше 13 кг/см5"]
["Омская область","острый и редуцированный пар"]
["Оренбургская область"]
["Орловская область"]
["Пензенская область"]
["Пермский край"]
["Приморский край"]
["Псковская область"]
["Республика Адыгея"]
["Республика Алтай"]
["Республика Башкортостан"]
["Республика Бурятия"]
["Республика Дагестан"]
["Республика Ингушетия"]
["Республика Калмыкия"]
["Республика Карелия"]
["Республика Коми"]
["Республика Марий Эл"]
["Республика Мордовия"]
["Республика Саха (Якутия)"]
["Республика Северная Осетия-Алания"]
["Республика Татарстан"]
["Республика Тыва"]
["Республика Хакасия"]
["Ростовская область"]
["Рязанская область"]
["Самарская область"]
["Саратовская область"]
["Сахалинская область"]
["Свердловская область"]
["Смоленская область"]
["Ставропольский край"]
["Тамбовская область"]
["Тверская область"]
["Томская область"]
["Тульская область"]
["Тюменская область"]
["Удмуртская республика"]
["Ульяновская область"]
["Хабаровский край"]
["Ханты-Мансийский автономный округ"]
["Челябинская область"]
["Чеченская республика"]
["Чувашская республика"]
["Чукотский автономный округ"]
["Ямало-Ненецкий автономный округ"]
["Ярославская область"]

{"sheet":"tech","index":17,"n_rows":51,"n_cols":10,"rows_kept":51,"cut":false,"hidden":true,"merged":[[2,4,5,4],[2,5,5,5]]}
[]
[]
[null,null,null,null,null,null,"Стоимость","тыс.руб.",null,"Удалить"]
[null,null,null,null,null,null,"Объем",{"$f":"IF(J4,\"\",J5)","v":""},null,{"$f":"ISNA(J5)","v":true}]
[null,null,null,null,null,null,"Стоимость 1й единицы объема с учетом доставки (транспортировки)","тыс.руб.",{"$f":"IF(I4=\"\",0,IF(I4=0,0,I3/I4))","v":0},{"$f":"INDEX(tech!G$24:G$51,MATCH(F3,tech!F$24:F$51,0))","v":{"$error":"#N/A"}}]
[null,null,null,null,null,null,"Способ приобретения","x"]
[]
[]
[]
[]
[]
["et_price1_1"]
[]
[null,null,null,"Удалить теплоноситель"]
[]
["et_tsdostup_1"]
[]
[null,null,null,"Удалить теплоноситель"]
[]
["et_ssilki_1"]
[]
[]
[]
[]
[null,null,null,null,null,"газ природный","тыс. м3"]
[null,null,null,null,null,"газ сжиженный","кг"]
[null,null,null,null,null,"газовый конденсат","тонны"]
[null,null,null,null,null,"гшз","тонны"]
[null,null,null,null,null,"мазут","тонны"]
[null,null,null,null,null,"нефть","тонны"]
[null,null,null,null,null,"дизельное топливо","тонны"]
[null,null,null,null,null,"уголь бурый","тонны"]
[null,null,null,null,null,"уголь каменный","тонны"]
[null,null,null,null,null,"торф","тонны"]
[null,null,null,null,null,"дрова","м3"]
[null,null,null,null,null,"опил","м3"]
[null,null,null,null,null,"отходы березовые","м3"]
[null,null,null,null,null,"отходы осиновые","м3"]
[null,null,null,null,null,"печное топливо","тонны"]
[null,null,null,null,null,"пилеты","тонны"]
[null,null,null,null,null,"смола","тонны"]
[null,null,null,null,null,"щепа","м3"]
[null,null,null,null,null,"Горючий сланец","тонны"]
[null,null,null,null,null,"Керосин","тонны"]
[null,null,null,null,null,"кислородно-водородная смесь","тыс. м3"]
[null,null,null,null,null,"Электроэнергия (НН)","тыс.кВт ч"]
[null,null,null,null,null,"Электроэнергия (СН1)","тыс.кВт ч"]
[null,null,null,null,null,"Электроэнергия (СН2)","тыс.кВт ч"]
[null,null,null,null,null,"Электроэнергия (ВН)","тыс.кВт ч"]
[null,null,null,null,null,"Мощность","тыс.кВт"]
[null,null,null,null,null,"прочее"]

{"sheet":"modHyp","index":18,"n_rows":0,"n_cols":0,"rows_kept":0,"cut":false,"hidden":true,"merged":[]}

{"sheet":"modChange","index":19,"n_rows":0,"n_cols":0,"rows_kept":0,"cut":false,"hidden":true,"merged":[]}

{"sheet":"modButtonClick","index":20,"n_rows":0,"n_cols":0,"rows_kept":0,"cut":false,"hidden":true,"merged":[]}

{"sheet":"modSubsidiary","index":21,"n_rows":0,"n_cols":0,"rows_kept":0,"cut":false,"hidden":true,"merged":[]}